bitfinex/quotes_ETHUSD_20240902
["timestamp","ask_amount","ask_price","bid_price","bid_amount"]
[1725300871130,8.913049,2532.8,2532.2,3.94912]
[1725300871470,7.89774,2532.4,2532.3,0.11323326]
[1725300871829,3.94947,2532.0,2531.5,26.25999514]
[1725300872069,3.94947,2532.0,2531.4,3.95027]
[1725300872279,3.9493,2532.1,2531.6,3.95006]
[1725300872954,3.94945,2532.0,2531.5,3.95022]
[1725300873468,3.94945,2532.0,2531.4,7.96520556]
[1725300873639,3.94929,2532.1,2531.5,3.95021]
[1725300873844,3.94948,2532.0,2531.5,3.95021]
[1725300874256,3.9498,2531.8,2531.3,11.23053]
[1725300874456,3.9498,2531.8,2531.3,15.18089]
[1725300874881,7.89965,2531.8,2531.3,11.23044]
[1725300875090,3.95008,2531.6,2531.1,3.95074]
[1725300875739,3.95034,2531.5,2531.0,11.23097]
[1725300876161,3.95034,2531.5,2531.0,15.24590556]
[1725300876371,3.95008,2531.6,2531.1,3.95081]
[1725300876584,10.25915,2531.8,2531.2,0.07901093]
[1725300876801,6.30926,2531.8,2531.2,4.02963093]
[1725300876965,3.94995,2531.7,2531.2,0.10340752]
[1725300877290,3.95008,2531.6,2531.2,0.10340752]
[1725300877497,7.90025,2531.6,2531.2,0.10340752]
[1725300877663,3.95008,2531.6,2531.0,15.24592556]
[1725300877851,3.95008,2531.6,2531.3,0.10334647]
[1725300878057,3.95008,2531.6,2531.0,15.24592556]
[1725300878283,3.95008,2531.6,2531.4,0.10328543]
[1725300878482,3.95008,2531.6,2531.0,7.28]
[1725300878684,3.95038,2531.4,2530.8,42.12239514]
[1725300878990,3.95008,2531.6,2531.1,0.10346858]
[1725300879152,2.990326,2531.8,2530.9,3.0]
[1725300879153,3.95046,2531.4,2530.9,3.0]
[1725300879358,3.95054,2531.3,2531.2,0.10340752]
[1725300879663,3.95089,2531.1,2530.7,7.28]
[1725300880661,3.9507,2531.2,2530.7,7.28]
[1725300882598,4.7803286,2531.2,2530.7,7.28]
[1725300883455,3.9507,2531.2,2530.7,7.28]
[1725300883869,6.24644,2531.3,2530.7,11.31043055]
[1725300884102,3.95054,2531.3,2530.7,11.31043055]
[1725300884312,3.95054,2531.3,2530.8,3.95129]
[1725300884496,3.95054,2531.3,2530.7,3.95147]
[1725300885296,7.90121,2531.3,2530.7,3.95147]
[1725300885682,3.95071,2531.2,2530.7,3.95147]
[1725300886314,3.95071,2531.2,2530.5,30.21174514]
[1725300886315,3.9511,2531.0,2530.5,30.21174514]
[1725300888137,3.95086,2531.1,2530.5,34.16345514]
[1725300888342,8.16932697,2531.5,2530.8,3.9513]
[1725300888343,3.95059,2531.3,2530.8,3.9513]
[1725300888522,10.46515697,2531.6,2530.9,4.03016986]
[1725300888722,3.9503,2531.5,2530.9,4.03016986]
[1725300889100,3.9503,2531.5,2530.9,7.98124986]
[1725300889329,2.4927,2532.0,2531.0,2.42501427]
[1725300889530,6.44225,2532.0,2531.3,3.95044]
[1725300889858,4.19888,2531.9,2531.3,3.95044]
[1725300890439,3.94977,2531.8,2531.2,4.02961581]
[1725300890642,3.94977,2531.8,2531.2,7.90122]
[1725300891000,2.2603,2532.3,2531.7,3.94987]
[1725300891202,2.2603,2532.3,2531.3,0.07900572]
[1725300891203,2.2603,2532.3,2531.6,3.95006]
[1725300891509,3.94922,2532.2,2531.8,0.10487309]
[1725300891726,3.94922,2532.2,2531.7,4.05451963]
[1725300892054,3.94915,2532.2,2531.8,0.10459174]
[1725300892212,7.89837,2532.2,2531.6,4.68134777]
[1725300892413,7.89837,2532.2,2531.9,0.10453072]
[1725300892715,7.89837,2532.2,2531.6,4.68134777]
[1725300892917,7.89837,2532.2,2532.0,0.10436679]
[1725300892918,3.94915,2532.2,2532.0,0.10436679]
[1725300893111,3.94915,2532.2,2531.6,4.68124777]
[1725300893308,2.2603,2532.3,2532.1,0.10430578]
[1725300893548,2.2603,2532.3,2531.7,3.94981]
[1725300893754,6.20932,2532.3,2532.2,0.10424477]
[1725300893923,7.6470497,2532.3,2531.7,3.94981]
[1725300894132,6.20932,2532.3,2532.2,0.10424477]
[1725300894644,6.20932,2532.3,2531.8,3.9497]
[1725300894645,2.2603,2532.3,2531.8,3.9497]
[1725300894948,2.2603,2532.3,2532.2,0.10424477]
[1725300895164,2.2603,2532.3,2531.8,3.9497]
[1725300895312,2.2603,2532.3,2532.2,0.10351049]
[1725300895515,2.2603,2532.3,2531.8,3.9497]
[1725300895709,2.2603,2532.3,2532.2,0.10351049]
[1725300895956,8.16775697,2532.5,2531.9,3.94951]
[1725300896124,3.94882,2532.4,2532.2,0.10351049]
[1725300896449,3.94882,2532.4,2532.3,0.10342891]
[1725300896662,3.94882,2532.4,2531.8,3.94974]
[1725300896951,3.94913,2532.2,2531.7,3.94982]
[1725300898966,4.21908697,2531.9,2531.4,18.97999514]
[1725300899149,3.95,2531.7,2531.4,18.97999514]
[1725300899383,3.95014,2531.6,2531.4,18.97999514]
[1725300899678,3.95014,2531.6,2531.0,8.29761]
[1725300899841,3.95014,2531.6,2531.0,7.90181]
[1725300900047,3.95014,2531.6,2531.0,6.693071]
[1725300900848,3.95014,2531.6,2531.1,3.95077]
[1725300901262,8.16877697,2531.9,2531.2,4.02956085]
[1725300901474,8.16877697,2531.9,2531.2,3.95055]
[1725300901975,3.94976,2531.8,2531.2,3.95055]
[1725300902133,3.94976,2531.8,2531.2,4.6198231]
[1725300902577,8.16869697,2531.9,2531.3,3.95052]
[1725300902784,3.94961,2531.9,2531.4,3.95031]
[1725300903163,3.94961,2531.9,2531.4,4.81522064]
[1725300903338,6.42161,2532.1,2531.5,3.95022]
[1725300903542,6.42161,2532.1,2531.6,3.94993]
[1725300903766,6.42161,2532.1,2531.5,4.02921386]
[1725300903767,2.4722,2532.1,2531.7,3.9499]
[1725300904041,3.94906,2532.3,2531.8,3.94967]
[1725300904246,3.94906,2532.3,2531.7,3.9499]
[1725300904247,3.94913,2532.2,2531.7,3.9499]
[1725300904540,3.94938,2532.1,2531.5,30.21009514]
[1725300904768,8.16776697,2532.5,2531.5,26.25999514]
[1725300904769,6.28744,2531.8,2531.5,26.25999514]
[1725300905089,3.95007,2531.6,2531.0,3.95099]
[1725300905254,3.95071,2531.2,2530.9,7.28]
[1725300905453,3.95071,2531.2,2530.8,18.97999514]
[1725300905454,3.95102,2531.0,2530.8,18.97999514]
[1725300905787,7.90158,2531.2,2530.6,13.53837]
[1725300905955,3.95079,2531.2,2530.6,16.155799]
[1725300906140,3.95079,2531.2,2530.7,0.09818312]
[1725300907174,3.95079,2531.2,2530.7,4.04965312]
[1725300907481,3.95079,2531.2,2530.7,4.04957312]
[1725300907791,3.95079,2531.2,2530.7,0.09818312]
[1725300908084,3.95093,2531.1,2530.7,0.09818312]
[1725300910600,3.95079,2531.2,2530.7,0.09818312]
[1725300910897,7.90161,2531.2,2530.7,0.09818312]
[1725300911106,3.95093,2531.1,2530.7,0.09818312]
[1725300913157,3.95102,2531.0,2530.7,0.09818312]
[1725300913361,6.57738697,2530.8,2530.2,7.87352905]
[1725300913565,4.21908697,2530.3,2530.1,18.97999514]
[1725300913806,3.95207,2530.4,2530.1,18.97999514]
[1725300913960,3.95202,2530.4,2530.1,18.97999514]
[1725300915382,7.90406,2530.4,2530.1,18.97999514]
[1725300915609,3.95202,2530.4,2530.1,18.97999514]
[1725300916210,3.95211,2530.3,2530.1,18.97999514]
[1725300916393,3.95225,2530.3,2530.1,18.97999514]
[1725300916594,3.95243,2530.1,2529.8,7.28]
[1725300916813,3.95165,2530.6,2529.8,0.07905188]
[1725300916814,3.95186,2530.5,2529.8,0.07905188]
[1725300916995,7.90376,2530.5,2529.9,3.95264]
[1725300917201,3.95196,2530.4,2529.9,3.95264]
[1725300917416,3.95227,2530.2,2529.8,0.07905188]
[1725300917919,3.95196,2530.4,2529.8,7.98467188]
[1725300918093,3.95196,2530.4,2529.8,4.83028907]
[1725300918297,7.90399,2530.4,2529.8,8.78306907]
[1725300918624,3.95196,2530.4,2529.9,3.9527]
[1725300918819,3.95196,2530.4,2529.9,4.03174432]
[1725300919011,7.904,2530.4,2529.9,4.03174432]
[1725300919398,3.95218,2530.3,2529.9,0.07904432]
[1725300919599,3.95196,2530.4,2529.9,0.07904432]
[1725300919913,3.95196,2530.4,2529.9,4.551771]
[1725300920122,7.904,2530.4,2529.9,0.599201]
[1725300920285,3.9521,2530.3,2529.9,0.599201]
[1725300921215,3.9521,2530.3,2530.0,0.08744666]
[1725300921930,6.31005,2530.6,2530.0,0.08744666]
[1725300922132,7.42869557,2530.6,2530.0,0.08744666]
[1725300922318,3.95197,2530.4,2530.0,0.08744666]
[1725300922632,7.90404,2530.4,2530.0,0.08744666]
[1725300923336,7.42867557,2530.6,2530.0,0.08744666]
[1725300923512,3.95188,2530.5,2530.0,4.03993666]
[1725300923953,3.95173,2530.6,2530.1,3.95237]
[1725300924116,7.21908697,2531.0,2530.2,0.07903598]
[1725300924117,11.17020697,2531.0,2530.2,0.07903598]
[1725300924313,3.95132,2530.8,2530.3,7.90397]
[1725300924520,3.95132,2530.8,2530.3,7.98300198]
[1725300924715,8.17017697,2531.0,2530.4,0.08768109]
[1725300925239,3.95125,2530.9,2530.4,3.95186]
[1725300925447,3.95125,2530.9,2530.5,0.08749684]
[1725300926539,3.95151,2530.7,2530.5,0.08749684]
[1725300926742,7.90326,2530.6,2530.5,0.08749684]
[1725300927061,3.95183,2530.5,2530.1,18.97999514]
[1725300927344,3.95163,2530.6,2530.1,22.93240514]
[1725300927646,7.90339,2530.6,2530.2,2.29324051]
[1725300927996,3.95163,2530.6,2530.2,2.29324051]
[1725300928350,7.90336,2530.6,2530.2,2.29324051]
[1725300928545,2.4162,2531.0,2530.2,3.9521]
[1725300928746,3.95124,2530.9,2530.3,3.95197]
[1725300929255,4.21908697,2531.1,2530.6,3.95154]
[1725300929435,8.16993697,2531.1,2530.6,3.95154]
[1725300929639,12.12091697,2531.1,2530.6,3.95154]
[1725300930226,8.16993697,2531.1,2530.6,3.95154]
[1725300930911,3.95104,2531.0,2530.5,3.95166]
[1725300931121,3.95104,2531.0,2530.5,4.346842]
[1725300932028,3.95104,2531.0,2530.6,3.95163]
[1725300935932,8.16994697,2531.1,2530.6,3.95163]
[1725300936254,4.21908697,2531.4,2530.7,0.16582156]
[1725300936451,3.95023,2531.5,2531.0,3.9509]
[1725300936860,3.95023,2531.5,2531.1,0.08654212]
[1725300937162,3.95039,2531.4,2531.1,0.08654212]
[1725300937319,3.95063,2531.3,2531.1,0.08654212]
[1725300937521,6.37579,2531.2,2531.1,0.08654212]
[1725300937755,6.37579,2531.2,2530.8,7.28]
[1725300937960,8.16958697,2531.4,2531.1,0.08644637]
[1725300938118,4.21908697,2531.4,2531.0,3.95096]
[1725300938313,6.37543,2531.5,2531.0,3.95096]
[1725300938314,2.4251,2531.5,2531.1,3.95077]
[1725300938628,3.95012,2531.6,2531.1,0.08644637]
[1725300938629,3.95008,2531.6,2531.1,0.08644637]
[1725300938825,4.21908697,2531.7,2531.2,3.95062]
[1725300939152,8.16901697,2531.7,2531.2,4.03696429]
[1725300940473,2.94814774,2532.4,2531.4,2.4709]
[1725300940615,2.4323,2532.4,2531.9,3.9496]
[1725300940826,2.4323,2532.4,2532.2,3.94911]
[1725300940827,0.12,2532.4,2532.2,3.94911]
[1725300941024,0.12,2532.4,2532.3,0.394911]
[1725300941370,0.12,2532.4,2532.3,0.0853038]
[1725300944062,4.06836,2532.7,2532.3,0.0853038]
[1725300944258,4.33908697,2532.7,2532.3,0.0853038]
[1725300944472,7.8975,2532.5,2531.9,3.94959]
[1725300944663,3.94875,2532.5,2532.4,0.0852428]
[1725300944862,3.94875,2532.5,2532.0,3.94939]
[1725300945079,3.94851,2532.6,2532.4,0.08474396]
[1725300945234,8.28753697,2532.7,2532.1,3.94927]
[1725300945441,9.11629067,2532.7,2532.5,0.08468296]
[1725300945635,5.16784067,2532.7,2532.3,3.94896]
[1725300945862,5.16784067,2532.7,2532.6,0.08462197]
[1725300945863,0.12,2532.7,2532.6,0.08462197]
[1725300946076,0.12,2532.7,2532.3,3.94889]
[1725300946282,0.12,2532.7,2532.6,0.08462197]
[1725300946481,0.12,2532.7,2532.3,3.94889]
[1725300946777,0.12,2532.7,2532.6,0.08462197]
[1725300947282,0.12,2532.7,2532.3,7.89778]
[1725300947580,0.12,2532.7,2532.6,0.08462197]
[1725300947748,0.12,2532.7,2532.3,7.89778]
[1725300947955,0.12,2532.7,2532.6,0.08462197]
[1725300948435,0.12,2532.7,2532.4,3.94874]
[1725300948785,0.12,2532.7,2532.6,0.08462197]
[1725300949278,0.12,2532.7,2532.4,3.94874]
[1725300949483,0.12,2532.7,2532.6,0.08462197]
[1725300949684,0.12,2532.7,2532.4,3.94874]
[1725300949976,4.0682,2532.8,2532.6,0.08462197]
[1725300950155,5.113042,2532.8,2532.5,0.08468296]
[1725300950351,3.94859,2532.6,2532.1,3.94928]
[1725300950544,3.94874,2532.5,2532.0,11.22932]
[1725300950981,6.22244,2532.5,2532.0,15.17869]
[1725300951341,2.2737,2532.5,2532.1,4.03309016]
[1725300951839,3.94856,2532.6,2532.1,4.03309016]
[1725300952264,6.22239,2532.5,2532.1,0.08384016]
[1725300952611,3.94891,2532.4,2532.1,0.08384016]
[1725300952789,6.22239,2532.5,2532.1,0.08384016]
[1725300952991,7.89692,2532.7,2532.2,3.94913]
[1725300953312,3.94845,2532.7,2532.3,0.08377281]
[1725300955798,3.94864,2532.6,2532.1,3.94928]
[1725300956119,3.94864,2532.6,2532.0,11.22932]
[1725300956120,3.94869,2532.5,2532.0,11.22932]
[1725300959374,3.94869,2532.5,2532.0,13.971197]
[1725300960472,3.94905,2532.3,2532.0,7.28]
[1725300960811,0.12,2532.8,2532.0,7.28]
[1725300960812,3.94929,2532.1,2532.0,7.28]
[1725300961107,3.9489,2532.4,2531.9,3.94958]
[1725300961286,0.12,2532.5,2532.1,3.94928]
[1725300962298,4.0687,2532.5,2532.0,6.2627]
[1725300962464,4.0687,2532.5,2532.0,3.9493]
[1725300962867,4.0687,2532.5,2532.1,3.94928]
[1725300963256,0.75873,2532.5,2532.0,3.205]
[1725300963418,3.94907,2532.3,2532.0,3.205]
[1725300965761,4.06877,2532.5,2532.0,3.205]
[1725300965968,4.06877,2532.5,2532.0,7.15437]
[1725300966205,0.12,2532.5,2532.3,3.94896]
[1725300966513,0.12,2532.5,2532.4,0.08380061]
[1725300967213,0.12,2532.8,2532.6,3.94842]
[1725300967433,0.12,2533.0,2532.9,3.94804]
[1725300967729,0.12,2533.0,2532.9,4.592664]
[1725300967878,0.12,2533.4,2532.9,4.67615969]
[1725300968074,3.94722,2533.5,2533.0,3.94788]
[1725300968273,3.94727,2533.4,2533.0,0.55894665]
[1725300968509,3.94727,2533.4,2533.0,0.08343473]
[1725300968692,3.9475,2533.3,2532.8,3.94814]
[1725300968878,3.94727,2533.4,2533.1,0.08288201]
[1725300969081,3.94727,2533.4,2532.9,3.94803]
[1725300969321,3.94727,2533.4,2533.2,0.08265036]
[1725300969533,6.52944,2533.6,2533.0,3.94781]
[1725300969534,3.94713,2533.5,2533.0,3.94781]
[1725300969694,3.94713,2533.5,2533.3,0.08258941]
[1725300969890,3.94713,2533.5,2533.0,3.94781]
[1725300970202,3.94713,2533.5,2533.4,0.08252846]
[1725300970405,3.94713,2533.5,2533.0,3.94781]
[1725300970603,3.94713,2533.5,2533.4,0.08250115]
[1725300970807,3.94713,2533.5,2533.0,3.94781]
[1725300971405,3.94713,2533.5,2533.1,0.08268402]
[1725300971733,6.52944,2533.6,2533.1,0.08268402]
[1725300971734,3.94727,2533.4,2533.1,0.08268402]
[1725300972139,3.94742,2533.3,2533.1,0.08268402]
[1725300972341,3.94757,2533.2,2533.1,0.08268402]
[1725300972629,3.94757,2533.2,2532.7,22.92834514]
[1725300972833,3.94757,2533.2,2533.1,0.08195332]
[1725300972987,3.94757,2533.2,2532.8,0.08213622]
[1725300973387,3.94757,2533.2,2532.7,26.34402165]
[1725300973595,3.94742,2533.3,2532.9,0.08212304]
[1725300973830,8.16629697,2533.5,2532.9,6.59053647]
[1725300973831,3.94727,2533.4,2532.9,6.59053647]
[1725300974002,3.94727,2533.4,2533.0,0.08206207]
[1725300974410,3.94723,2533.5,2533.0,0.08206207]
[1725300974628,3.94723,2533.5,2532.7,18.97999514]
[1725300974629,3.94771,2533.2,2532.7,18.97999514]
[1725300974813,3.94771,2533.2,2532.8,0.0822318]
[1725300975010,6.30301,2533.1,2532.7,18.97999514]
[1725300975251,3.94811,2532.9,2532.7,18.97999514]
[1725300975548,7.89622,2532.9,2532.8,0.0822318]
[1725300975696,13.14044897,2532.9,2532.8,0.0822318]
[1725300976035,13.14044897,2532.9,2532.5,7.28]
[1725300976036,3.94829,2532.8,2532.5,7.28]
[1725300976249,4.973252,2532.9,2532.4,3.94874]
[1725300976250,3.94805,2532.9,2532.4,3.94874]
[1725300976538,3.94805,2532.9,2532.4,2.972841]
[1725300976744,3.94836,2532.7,2532.3,3.94887]
[1725300976916,3.94853,2532.6,2532.2,19.52]
[1725300977117,3.94836,2532.7,2532.2,19.52]
[1725300977312,3.94836,2532.7,2532.2,23.53493556]
[1725300977632,3.94917,2532.2,2532.0,10.485]
[1725300977813,4.06917,2532.2,2532.0,3.205]
[1725300978010,8.01845,2532.2,2532.0,3.205]
[1725300978211,3.94929,2532.1,2532.0,3.205]
[1725300978443,7.89858,2532.1,2532.0,3.205]
[1725300978743,15.39472497,2532.1,2532.0,3.205]
[1725300979046,19.34401497,2532.1,2532.0,3.205]
[1725300979214,22.34401497,2532.1,2532.0,3.205]
[1725300979413,26.29330497,2532.1,2532.0,3.205]
[1725300980105,18.39472497,2532.1,2532.0,3.205]
[1725300982432,3.94989,2531.8,2531.2,6.36541]
[1725300982741,3.9496,2531.9,2531.3,0.71705952]
[1725300982742,3.94995,2531.7,2531.3,0.71705952]
[1725300983324,3.95033,2531.5,2531.3,0.08051852]
[1725300983525,7.90066,2531.5,2531.0,3.205]
[1725300983852,3.95049,2531.4,2531.1,0.96157]
[1725300984057,7.90066,2531.5,2531.1,0.96157]
[1725300984256,7.90066,2531.5,2531.1,1.04458106]
[1725300984257,3.95033,2531.5,2531.1,1.04458106]
[1725300984409,3.95033,2531.5,2531.1,0.08301106]
[1725300984618,3.95057,2531.3,2531.1,0.08301106]
[1725300984936,3.95069,2531.2,2531.1,0.08301106]
[1725300985142,3.95051,2531.4,2531.1,0.08301106]
[1725300987786,6.47908697,2531.9,2531.1,0.49082459]
[1725300987988,2.26,2531.9,2531.2,2.4596]
[1725300988195,3.95009,2531.6,2531.1,4.36265217]
[1725300988499,3.94985,2531.8,2531.2,9.5481471]
[1725300988667,7.89906,2532.0,2531.5,3.95021]
[1725300988988,0.12,2532.1,2531.3,1.07071367]
[1725300989162,3.95004,2531.7,2531.6,0.08283572]
[1725300989700,3.95004,2531.7,2531.2,1.48477122]
[1725300989988,3.95004,2531.7,2531.6,0.08283572]
[1725300990187,3.95004,2531.7,2531.2,1.48477122]
[1725300990346,3.95004,2531.7,2531.6,0.08283572]
[1725300990550,3.95004,2531.7,2531.2,1.48477122]
[1725300990748,3.95031,2531.5,2531.2,1.48477122]
[1725300991064,3.95047,2531.4,2531.0,10.485]
[1725300991264,3.95077,2531.2,2531.0,10.485]
[1725300991462,3.95077,2531.2,2531.0,3.205]
[1725300991799,3.95085,2531.1,2531.0,3.205]
[1725300991986,7.9017,2531.1,2531.0,3.205]
[1725300993697,3.95085,2531.1,2531.0,3.205]
[1725300995853,4.07071,2531.2,2531.0,3.205]
[1725300996297,4.07071,2531.2,2531.1,0.08099027]
[1725300997679,0.12,2531.2,2531.1,0.4095893]
[1725300997904,0.12,2531.2,2531.1,8.39031054]
[1725300998197,0.12,2531.2,2531.1,4.3604393]
[1725300998591,0.12,2531.2,2531.1,8.39029584]
[1725300998768,0.12,2531.2,2531.1,4.3604393]
[1725300998950,0.12,2531.2,2531.1,0.08099027]
[1725300999153,0.12,2531.2,2531.1,4.03184027]
[1725301000562,0.12,2531.2,2531.1,0.08099027]
[1725301003460,3.95025,2531.5,2531.1,0.08099027]
[1725301003461,0.12,2531.4,2531.1,0.08099027]
[1725301003859,3.95054,2531.3,2531.1,0.08099027]
[1725301008083,7.90138,2531.2,2531.1,0.08099027]
[1725301010110,4.07051,2531.4,2531.1,0.08099027]
[1725301010262,0.12,2531.4,2531.1,0.08099027]
[1725301011502,0.12,2531.4,2531.2,3.95057]
[1725301011864,0.12,2531.4,2531.3,0.07816616]
[1725301012616,0.12,2531.4,2531.2,3.95057]
[1725301012926,0.12,2531.4,2531.3,0.07816616]
[1725301013095,0.12,2531.4,2531.2,3.95057]
[1725301013422,0.12,2531.4,2531.3,0.07816616]
[1725301013989,0.12,2531.4,2531.2,3.95057]
[1725301014191,0.12,2531.4,2531.3,0.07816616]
[1725301014508,0.12,2531.4,2531.2,3.95057]
[1725301014686,0.12,2531.4,2531.3,0.07816616]
[1725301014895,0.12,2531.4,2531.2,3.95057]
[1725301015405,0.12,2531.5,2531.3,0.07816616]
[1725301015610,4.07025,2531.5,2531.3,0.07816616]
[1725301015830,4.07025,2531.5,2531.1,3.95083]
[1725301015992,4.07025,2531.5,2531.4,0.07810511]
[1725301016175,4.07025,2531.5,2531.0,7.15592]
[1725301016382,6.30494,2531.3,2531.0,3.205]
[1725301016582,3.95085,2531.1,2531.0,3.205]
[1725301018552,7.9017,2531.1,2531.0,3.205]
[1725301018990,8.27309385,2531.1,2531.0,3.205]
[1725301020432,8.86732724,2531.1,2531.0,3.205]
[1725301021438,8.98732724,2531.1,2531.0,3.205]
[1725301021719,17.26139563,2531.1,2531.0,3.205]
[1725301021878,19.65616421,2531.1,2531.0,3.205]
[1725301022076,18.69053697,2531.1,2531.0,3.205]
[1725301022302,19.65626069,2531.1,2531.0,3.205]
[1725301023107,15.70541069,2531.1,2531.0,3.205]
[1725301023310,7.53547372,2531.1,2531.0,3.205]
[1725301023480,5.03657372,2531.1,2531.0,3.205]
[1725301024003,8.98742372,2531.1,2531.0,3.205]
[1725301024204,10.30807479,2531.1,2531.0,3.205]
[1725301024434,14.52716176,2531.1,2531.0,3.205]
[1725301024750,20.38262024,2531.1,2531.0,3.205]
[1725301025119,16.43177024,2531.1,2531.0,3.205]
[1725301025321,16.43177557,2531.1,2531.0,3.205]
[1725301025909,20.38262557,2531.1,2531.0,3.205]
[1725301026104,23.38262557,2531.1,2531.0,3.205]
[1725301026618,23.38262557,2531.1,2531.0,3.28395702]
[1725301027056,23.38262557,2531.1,2531.0,3.205]
[1725301028246,27.33347557,2531.1,2531.0,3.205]
[1725301028513,27.88347557,2531.1,2531.0,3.205]
[1725301032052,27.51203804,2531.1,2531.0,3.205]
[1725301032561,27.88353907,2531.1,2531.0,3.205]
[1725301033822,27.88353907,2531.1,2529.5,2.3143]
[1725301033823,2.3141,2530.2,2529.5,2.3143]
[1725301034123,3.95344,2529.5,2529.3,7.28]
[1725301034351,4.07359,2529.4,2529.1,2.3143]
[1725301034573,4.07359,2529.4,2529.1,2.980728]
[1725301035579,0.12,2529.4,2529.1,2.980728]
[1725301037272,0.12,2529.4,2529.1,2.3143]
[1725301037584,4.07362,2529.4,2528.9,7.28]
[1725301037727,3.95399,2529.1,2528.9,7.28]
[1725301038073,3.95413,2529.0,2528.9,7.28]
[1725301038379,3.95083,2531.2,2530.6,3.95155]
[1725301038530,3.94969,2531.9,2531.2,2.3143]
[1725301038785,2.3141,2531.6,2530.6,2.3143]
[1725301038981,3.95063,2531.3,2530.6,2.3143]
[1725301039231,4.345693,2531.3,2530.6,2.3143]
[1725301039397,0.395063,2531.3,2530.7,7.90283]
[1725301039586,6.26425,2531.6,2531.0,3.95095]
[1725301039587,3.95015,2531.6,2531.0,3.95095]
[1725301039785,3.94977,2531.8,2531.0,3.95096]
[1725301040015,0.630767,2531.7,2531.0,3.95096]
[1725301040489,0.630767,2531.7,2531.2,7.90116]
[1725301041025,0.630767,2531.7,2531.2,3.95057]
[1725301041224,0.630767,2531.7,2531.3,0.07452021]
[1725301041722,0.630767,2531.7,2531.3,3.95039]
[1725301041906,0.96536524,2531.6,2531.4,4.02414727]
[1725301042326,0.96539168,2531.5,2531.4,4.02414727]
[1725301042485,0.96539168,2531.5,2531.4,0.07377727]
[1725301042818,0.96539168,2531.5,2531.2,7.90116]
[1725301043019,0.37130449,2531.4,2531.3,3.95053]
[1725301044189,0.61884082,2532.0,2531.5,3.95011]
[1725301044388,3.94919,2532.2,2531.5,3.95011]
[1725301044389,1.21284265,2531.9,2531.5,3.95011]
[1725301044588,0.96532374,2531.8,2531.5,3.95011]
[1725301044826,0.96532374,2531.7,2531.5,3.95011]
[1725301045128,0.37127836,2531.6,2531.5,3.95011]
[1725301045333,0.61879895,2531.9,2531.1,3.95075]
[1725301045631,7.47298692,2531.8,2531.3,3.95044]
[1725301045822,0.96532637,2531.7,2531.3,3.95044]
[1725301046161,1.93540316,2531.7,2531.3,3.95044]
[1725301046280,0.96532637,2531.6,2531.3,3.95044]
[1725301046486,0.96532637,2531.6,2531.1,3.95075]
[1725301046712,0.96532637,2531.6,2531.1,3.95073]
[1725301047316,4.91541637,2531.6,2531.1,3.95073]
[1725301047488,3.95049,2531.4,2530.8,3.95129]
[1725301047694,4.81352101,2531.3,2530.8,3.95129]
[1725301047895,0.37127937,2531.2,2530.8,3.95129]
[1725301048528,0.96545043,2531.2,2530.8,3.95129]
[1725301048694,0.37127937,2531.1,2530.7,2.2595]
[1725301048889,0.94917651,2531.1,2530.6,3.95151]
[1725301049098,0.37136905,2531.0,2530.6,3.95151]
[1725301049402,0.57789714,2531.1,2530.6,3.95151]
[1725301049602,0.37136423,2531.0,2530.6,3.95151]
[1725301049811,0.48999614,2531.0,2530.5,2.2595]
[1725301050032,0.48999614,2531.0,2530.5,3.95178]
[1725301050033,0.37136472,2530.9,2530.5,3.95178]
[1725301050252,0.37138804,2530.8,2530.4,7.90368]
[1725301050420,0.68429261,2530.9,2530.4,7.90368]
[1725301050747,0.68429261,2530.9,2530.6,3.95161]
[1725301050950,0.48999614,2531.0,2530.6,3.95161]
[1725301051256,0.37137745,2530.9,2530.4,7.90363]
[1725301051450,0.48999614,2531.0,2530.4,3.9518]
[1725301051451,0.37137745,2530.8,2530.4,3.9518]
[1725301051657,0.37137745,2530.7,2530.4,3.9518]
[1725301051946,3.95101,2531.0,2530.2,16.49655]
[1725301051947,3.9518,2530.5,2530.2,7.28]
[1725301052246,3.95177,2530.6,2530.1,22.93230514]
[1725301052405,0.3714468,2530.5,2530.1,22.93230514]
[1725301052607,4.75556848,2530.5,2530.1,18.97999514]
[1725301052830,0.3714468,2530.4,2530.1,18.97999514]
[1725301053030,0.3714468,2530.3,2530.1,18.97999514]
[1725301053349,4.38412168,2530.5,2530.1,18.97999514]
[1725301053505,0.43232168,2530.5,2530.1,18.97999514]
[1725301053707,0.37146159,2530.4,2530.1,18.97999514]
[1725301053914,0.37146159,2530.3,2530.1,18.97999514]
[1725301054133,4.38422168,2530.5,2530.1,18.97999514]
[1725301054339,0.96581208,2530.4,2530.1,18.97999514]
[1725301054545,0.37146618,2530.3,2530.1,18.97999514]
[1725301054865,4.32380618,2530.2,2529.6,26.25999514]
[1725301055013,3.95257,2530.0,2529.6,11.2331]
[1725301055208,3.95234,2530.2,2529.6,11.2331]
[1725301055209,3.95303,2529.7,2529.6,7.28]
[1725301055752,3.95278,2529.9,2529.6,7.28]
[1725301055939,3.95303,2529.7,2529.6,7.28]
[1725301056115,4.32456902,2529.7,2529.6,7.28]
[1725301056312,5.38822392,2529.7,2529.6,0.07441309]
[1725301056513,5.0166849,2529.7,2529.6,0.07441309]
[1725301056741,5.38825415,2529.7,2529.2,3.95381]
[1725301056952,5.38825415,2529.7,2529.6,0.07441309]
[1725301057248,1.43522415,2529.7,2529.6,0.07441309]
[1725301057470,0.37156925,2529.7,2529.5,3.95333]
[1725301057669,3.95265,2530.0,2529.6,0.07441309]
[1725301057879,1.40456491,2529.9,2529.6,0.07441309]
[1725301058172,0.37156225,2529.8,2529.4,3.95338]
[1725301058380,4.32444225,2529.8,2529.3,3.95365]
[1725301058695,0.37156225,2529.7,2529.4,0.07570156]
[1725301059037,4.32463225,2529.7,2529.2,3.95373]